fUSD/lending_fUSD_20260602
["ID","MTS","AMOUNT","RATE_DAILY","PERIOD"]
[423764961,1780404638000,-500.0,0.00011524,2]
[423764962,1780404638000,-152.0,0.00011537,7]
[423764964,1780404638000,-1680.0,0.00011639,2]
[423764966,1780404638000,-67100.0585,0.00011684,2]
[423764968,1780404638000,-163.39,0.00011721,2]
[423764965,1780404638000,-250.0,0.0001164,2]
[423764975,1780404638000,-189.69740348,0.00011853,7]
[423764954,1780404638000,-150.0,0.00011381,2]
[423765012,1780404638000,-249.59,0.00013031,2]
[423764994,1780404638000,-255.0,0.00012439,2]
[423765008,1780404638000,-2351.0,0.00012803,2]
[423765072,1780404638000,-500.0,0.00013425,2]
[423765084,1780404638000,-342.72406063,0.00013425,2]
[423765076,1780404638000,-639.74075382,0.00013425,2]
[423765082,1780404638000,-500.0,0.00013425,2]
[423765094,1780404638000,-500.0,0.00013425,2]
[423765096,1780404638000,-500.0,0.00013425,2]
[423765101,1780404638000,-386.84986946,0.00013425,2]
[423765098,1780404638000,-500.0,0.00013425,2]
[423765100,1780404638000,-500.0,0.00013425,2]
[423765086,1780404638000,-500.0,0.00013425,2]
[423765087,1780404638000,-500.0,0.00013425,2]
[423765088,1780404638000,-500.0,0.00013425,2]
[423765105,1780404638000,-278.88036096,0.00013425,2]
[423765080,1780404638000,-500.0,0.00013425,2]
[423765104,1780404638000,-150.0,0.00013425,2]
[423765107,1780404638000,-500.0,0.00013425,2]
[423765109,1780404638000,-500.0,0.00013425,2]
[423765119,1780404638000,-500.0,0.00013425,2]
[423765121,1780404638000,-500.0,0.00013425,2]
[423765123,1780404638000,-306.6186348,0.00013425,2]
[423765125,1780404638000,-500.0,0.00013425,2]
[423765115,1780404638000,-500.0,0.00013425,2]
[423765117,1780404638000,-500.0,0.00013425,2]
[423765111,1780404638000,-500.0,0.00013425,2]
[423765113,1780404638000,-500.0,0.00013425,2]
[423765127,1780404638000,-500.0,0.00013425,2]
[423765131,1780404638000,-500.0,0.00013425,2]
[423765019,1780404638000,-151.0,0.00013113,2]
[423765090,1780404638000,-500.0,0.00013425,2]
[423765070,1780404638000,-194.79440243,0.00013425,2]
[423765092,1780404638000,-500.0,0.00013425,2]
[423765078,1780404638000,-541.41561873,0.00013425,2]
[423765023,1780404638000,-1867.63,0.00013257,2]
[423765074,1780404638000,-500.0,0.00013425,2]
[423765025,1780404638000,-4031.9761867,0.00013307,2]
[423765017,1780404638000,-500.0,0.00013082,2]
[423765015,1780404638000,-3335.34297416,0.00013041,2]
[423765129,1780404638000,-500.0,0.00013425,2]
[423765013,1780404638000,-2178.98388395,0.00013041,2]
[423765021,1780404638000,-151.0,0.00013113,2]
[423765029,1780404638000,-2178.98388395,0.00013351,2]
[423765031,1780404638000,-3335.34297416,0.00013351,2]
[423765033,1780404638000,-500.0,0.00013356,2]
[423765044,1780404638000,-500.0,0.00013425,2]
[423765036,1780404638000,-987.88,0.00013398,2]
[423765034,1780404638000,-800.0,0.00013356,2]
[423765038,1780404638000,-500.0,0.00013425,2]
[423765027,1780404638000,-156.0,0.00013325,2]
[423765064,1780404638000,-500.0,0.00013425,2]
[423765068,1780404638000,-500.0,0.00013425,2]
[423765040,1780404638000,-500.0,0.00013425,2]
[423765066,1780404638000,-150.0,0.00013425,2]
[423765062,1780404638000,-500.0,0.00013425,2]
[423765060,1780404638000,-500.0,0.00013425,2]
[423765046,1780404638000,-500.0,0.00013425,2]
[423765058,1780404638000,-500.0,0.00013425,2]
[423765048,1780404638000,-500.0,0.00013425,2]
[423765056,1780404638000,-500.0,0.00013425,2]
[423765054,1780404638000,-500.0,0.00013425,2]
[423765052,1780404638000,-508.29052709,0.00013425,2]
[423765042,1780404638000,-500.0,0.00013425,2]
[423765050,1780404638000,-338.44666707,0.00013425,2]
[423765177,1780404639000,-1233.0,0.00013425,2]
[423765184,1780404639000,-1252.26944877,0.00013425,2]
[423765185,1780404639000,-500.0,0.00013425,2]
[423765181,1780404639000,-1233.0,0.00013425,2]
[423765180,1780404639000,-1233.0,0.00013425,2]
[423765174,1780404639000,-500.0,0.00013425,2]
[423765164,1780404639000,-1233.0,0.00013425,2]
[423765167,1780404639000,-1233.0,0.00013425,2]
[423765171,1780404639000,-1233.0,0.00013425,2]
[423765173,1780404639000,-500.0,0.00013425,2]
[423765168,1780404639000,-500.0,0.00013425,2]
[423765182,1780404639000,-1233.0,0.00013425,2]
[423765169,1780404639000,-1233.0,0.00013425,2]
[423765179,1780404639000,-1233.0,0.00013425,2]
[423765196,1780404639000,-500.0,0.00013425,2]
[423765178,1780404639000,-537.33389924,0.00013425,2]
[423765186,1780404639000,-500.0,0.00013425,2]
[423765189,1780404639000,-360.12141826,0.00013425,2]
[423765188,1780404639000,-500.0,0.00013425,2]
[423765187,1780404639000,-500.0,0.00013425,2]
[423765190,1780404639000,-500.0,0.00013425,2]
[423765192,1780404639000,-500.0,0.00013425,2]
[423765191,1780404639000,-500.0,0.00013425,2]
[423765202,1780404639000,-500.0,0.00013425,2]
[423765203,1780404639000,-500.0,0.00013425,2]
[423765197,1780404639000,-500.0,0.00013425,2]
[423765194,1780404639000,-500.0,0.00013425,2]
[423765172,1780404639000,-500.0,0.00013425,2]
[423765183,1780404639000,-1233.0,0.00013425,2]
[423765170,1780404639000,-500.0,0.00013425,2]
[423765135,1780404639000,-500.0,0.00013425,2]
[423765176,1780404639000,-500.0,0.00013425,2]
[423765133,1780404639000,-500.0,0.00013425,2]
[423765195,1780404639000,-500.0,0.00013425,2]
[423765145,1780404639000,-500.0,0.00013425,2]
[423765146,1780404639000,-1233.0,0.00013425,2]
[423765147,1780404639000,-500.0,0.00013425,2]
[423765143,1780404639000,-1233.0,0.00013425,2]
[423765137,1780404639000,-500.0,0.00013425,2]
[423765148,1780404639000,-1233.0,0.00013425,2]
[423765139,1780404639000,-503.59944546,0.00013425,2]
[423765149,1780404639000,-500.0,0.00013425,2]
[423765144,1780404639000,-1233.0,0.00013425,2]
[423765142,1780404639000,-150.0,0.00013425,2]
[423765141,1780404639000,-503.86765878,0.00013425,2]
[423765140,1780404639000,-500.0,0.00013425,2]
[423765166,1780404639000,-1233.0,0.00013425,2]
[423765150,1780404639000,-1233.0,0.00013425,2]
[423765157,1780404639000,-500.0,0.00013425,2]
[423765151,1780404639000,-500.0,0.00013425,2]
[423765153,1780404639000,-500.0,0.00013425,2]
[423765154,1780404639000,-1233.0,0.00013425,2]
[423765155,1780404639000,-500.0,0.00013425,2]
[423765156,1780404639000,-1233.0,0.00013425,2]
[423765162,1780404639000,-1233.0,0.00013425,2]
[423765163,1780404639000,-500.0,0.00013425,2]
[423765161,1780404639000,-500.0,0.00013425,2]
[423765158,1780404639000,-1233.0,0.00013425,2]
[423765160,1780404639000,-1233.0,0.00013425,2]
[423765159,1780404639000,-500.0,0.00013425,2]
[423765165,1780404639000,-500.0,0.00013425,2]
[423765175,1780404639000,-1233.0,0.00013425,2]
[423765152,1780404639000,-1233.0,0.00013425,2]
[423765204,1780404639000,-500.0,0.00013425,2]
[423765199,1780404639000,-500.0,0.00013425,2]
[423765198,1780404639000,-500.0,0.00013425,2]
[423765241,1780404639000,-500.0,0.00013698,2]
[423765240,1780404639000,-500.0,0.00013698,2]
[423765233,1780404639000,-500.0,0.00013698,2]
[423765239,1780404639000,-500.0,0.00013698,2]
[423765236,1780404639000,-500.0,0.00013698,2]
[423765237,1780404639000,-500.0,0.00013698,2]
[423765243,1780404639000,-500.0,0.00013698,2]
[423765254,1780404639000,-180.0,0.00013699,2]
[423765253,1780404639000,-484.7755724,0.00013698,2]
[423765242,1780404639000,-500.0,0.00013698,2]
[423765246,1780404639000,-500.0,0.00013698,2]
[423765245,1780404639000,-500.0,0.00013698,2]
[423765252,1780404639000,-502.08902244,0.00013698,2]
[423765250,1780404639000,-500.0,0.00013698,2]
[423765248,1780404639000,-500.0,0.00013698,2]
[423765247,1780404639000,-500.0,0.00013698,2]
[423765244,1780404639000,-500.0,0.00013698,2]
[423765249,1780404639000,-500.0,0.00013698,2]
[423765251,1780404639000,-500.0,0.00013698,2]
[423765255,1780404639000,-200.0,0.00013699,2]
[423765258,1780404639000,-274.509484,0.00013699,2]
[423765256,1780404639000,-166.66,0.00013699,2]
[423765261,1780404639000,-500.0,0.00013699,2]
[423765257,1780404639000,-151.0,0.00013699,2]
[423765259,1780404639000,-500.0,0.00013699,2]
[423765193,1780404639000,-500.0,0.00013425,2]
[423765263,1780404639000,-500.0,0.00013699,2]
[423765260,1780404639000,-500.0,0.00013699,2]
[423765264,1780404639000,-500.0,0.00013699,2]
[423765238,1780404639000,-500.0,0.00013698,2]
[423765235,1780404639000,-500.0,0.00013698,2]
[423765262,1780404639000,-500.0,0.00013699,2]
[423765231,1780404639000,-500.0,0.00013698,2]
[423765234,1780404639000,-500.0,0.00013698,2]
[423765200,1780404639000,-324.37069545,0.00013425,2]
[423765205,1780404639000,-500.0,0.00013425,2]
[423765207,1780404639000,-500.0,0.00013425,2]
[423765206,1780404639000,-500.0,0.00013425,2]
[423765211,1780404639000,-260.50307483,0.00013425,2]
[423765215,1780404639000,-2178.98388395,0.00013661,2]
[423765208,1780404639000,-500.0,0.00013425,2]
[423765210,1780404639000,-500.0,0.00013425,2]
[423765209,1780404639000,-500.0,0.00013425,2]
[423765216,1780404639000,-3335.34297416,0.00013661,2]
[423765212,1780404639000,-242.2,0.00013432,2]
[423765213,1780404639000,-393.94573093,0.00013546,2]
[423765214,1780404639000,-433.0,0.000136,2]
[423765201,1780404639000,-500.0,0.00013425,2]
[423765228,1780404639000,-500.0,0.00013698,2]
[423765218,1780404639000,-2213.32341035,0.00013698,2]
[423765221,1780404639000,-503.57198463,0.00013698,2]
[423765227,1780404639000,-500.0,0.00013698,2]
[423765223,1780404639000,-500.0,0.00013698,2]
[423765224,1780404639000,-500.0,0.00013698,2]
[423765225,1780404639000,-500.0,0.00013698,2]
[423765230,1780404639000,-500.0,0.00013698,2]
[423765226,1780404639000,-500.0,0.00013698,2]
[423765217,1780404639000,-293.6013759,0.00013698,2]
[423765222,1780404639000,-500.0,0.00013698,2]
[423765232,1780404639000,-360.48137374,0.00013698,2]
[423765229,1780404639000,-500.0,0.00013698,2]
[423765219,1780404639000,-278.253208,0.00013698,2]
[423765220,1780404639000,-2274.60278587,0.00013698,2]
[423765294,1780404640000,-500.0,0.00013699,2]
[423765305,1780404640000,-305.98553863,0.0001406,10]
[423765297,1780404640000,-4031.9761867,0.00013705,2]
[423765296,1780404640000,-500.0,0.00013699,2]
[423765298,1780404640000,-1320.0,0.0001372,2]
[423765295,1780404640000,-500.0,0.00013699,2]
[423765300,1780404640000,-166.66,0.00013836,2]
[423765306,1780404640000,-3292.0,0.00014083,2]
[423765301,1780404640000,-2178.98388395,0.00013971,2]
[423765303,1780404640000,-166.66,0.00013973,2]
[423765304,1780404640000,-500.0,0.0001406,10]
[423765299,1780404640000,-150.0,0.00013819,2]
[423765313,1780404640000,-365059.59926106,0.0001425,2]
[423765308,1780404640000,-166.66,0.0001411,2]
[423765318,1780404640000,-151.0,0.0001425,2]
[423765317,1780404640000,-249.434936,0.0001425,2]
[423765307,1780404640000,-4031.9761867,0.00014103,2]
[423765309,1780404640000,-360.0,0.00014194,2]
[423765311,1780404640000,-500.0,0.00014249,2]
[423765312,1780404640000,-500.0,0.00014249,2]
[423765310,1780404640000,-166.66,0.00014247,2]
[423765316,1780404640000,-151.0,0.0001425,2]
[423765314,1780404640000,-151.0,0.0001425,2]
[423765315,1780404640000,-151.0,0.0001425,2]
[423765292,1780404640000,-500.0,0.00013699,2]
[423765302,1780404640000,-3335.34297416,0.00013971,2]
[423765288,1780404640000,-500.0,0.00013699,2]
[423765274,1780404640000,-500.0,0.00013699,2]
[423765284,1780404640000,-500.0,0.00013699,2]
[423765319,1780404640000,-1498.550082,0.0001425,2]
[423765266,1780404640000,-500.0,0.00013699,2]
[423765265,1780404640000,-500.0,0.00013699,2]
[423765267,1780404640000,-500.0,0.00013699,2]
[423765269,1780404640000,-500.0,0.00013699,2]
[423765268,1780404640000,-500.0,0.00013699,2]
[423765271,1780404640000,-500.0,0.00013699,2]
[423765272,1780404640000,-500.0,0.00013699,2]
[423765270,1780404640000,-500.0,0.00013699,2]
[423765281,1780404640000,-500.0,0.00013699,2]
[423765280,1780404640000,-500.0,0.00013699,2]
[423765279,1780404640000,-500.0,0.00013699,2]
[423765273,1780404640000,-500.0,0.00013699,2]
[423765278,1780404640000,-500.0,0.00013699,2]
[423765275,1780404640000,-500.0,0.00013699,2]
[423765277,1780404640000,-500.0,0.00013699,2]
[423765276,1780404640000,-500.0,0.00013699,2]
[423765283,1780404640000,-500.0,0.00013699,2]
[423765282,1780404640000,-500.0,0.00013699,2]
[423765285,1780404640000,-500.0,0.00013699,2]
[423765293,1780404640000,-500.0,0.00013699,2]
[423765290,1780404640000,-500.0,0.00013699,2]
[423765291,1780404640000,-500.0,0.00013699,2]
[423765287,1780404640000,-500.0,0.00013699,2]
[423765289,1780404640000,-500.0,0.00013699,2]
[423765286,1780404640000,-500.0,0.00013699,2]
[423765322,1780404640000,-1498.550082,0.0001425,2]
[423765356,1780404640000,-25000.0,0.00014874,3]
[423765331,1780404640000,-2178.98388395,0.0001459,2]
[423765360,1780404640000,-5902.73738216,0.000149,3]
[423765348,1780404640000,-987.88,0.00014737,2]
[423765357,1780404640000,-200.0,0.0001488,2]
[423765359,1780404640000,-25000.0,0.00014891,3]
[423765383,1780404640000,-8524.39739539,0.00015,2]
[423765362,1780404640000,-258.0,0.000149,5]
[423765368,1780404640000,-393.94573093,0.000149,2]
[423765363,1780404640000,-25000.0,0.000149,3]
[423765367,1780404640000,-4031.9761867,0.000149,2]
[423765366,1780404640000,-205.0,0.000149,5]
[423765364,1780404640000,-2178.98388395,0.000149,2]
[423765365,1780404640000,-3335.34297416,0.000149,2]
[423765369,1780404640000,-10000.0,0.00014904,2]
[423765372,1780404640000,-6111.0,0.00014936,2]
[423765373,1780404640000,-182.74701,0.0001495,2]
[423765371,1780404640000,-242.2,0.00014924,2]
[423765370,1780404640000,-2126.0739474,0.00014907,2]
[423765376,1780404640000,-532.81,0.00014997,2]
[423765374,1780404640000,-6111.0,0.00014968,2]
[423765377,1780404640000,-150.0,0.00014999,2]
[423765375,1780404640000,-15000.0,0.00014994,2]
[423765378,1780404640000,-1500.0,0.00014999,2]
[423765380,1780404640000,-250.0,0.00014999,2]
[423765381,1780404640000,-250.0,0.00014999,2]
[423765382,1780404640000,-626331.85684261,0.00015,2]
[423765353,1780404640000,-7928.50297555,0.00014852,2]
[423765350,1780404640000,-32965.38747936,0.0001485,2]
[423765379,1780404640000,-1500.0,0.00014999,2]
[423765347,1780404640000,-1867.63,0.00014731,2]
[423765358,1780404640000,-25000.0,0.00014882,3]
[423765321,1780404640000,-1498.550082,0.0001425,2]
[423765330,1780404640000,-339.0,0.00014521,2]
[423765324,1780404640000,-2178.98388395,0.0001428,2]
[423765320,1780404640000,-1498.550082,0.0001425,2]
[423765325,1780404640000,-3335.34297416,0.0001428,2]
[423765329,1780404640000,-4031.9761867,0.00014502,2]
[423765327,1780404640000,-476.11383643,0.00014413,2]
[423765328,1780404640000,-315.86710236,0.0001445,2]
[423765326,1780404640000,-166.66,0.00014384,2]
[423765333,1780404640000,-10000.0,0.0001462,2]
[423765344,1780404640000,-2011.16501096,0.00014709,2]
[423765332,1780404640000,-3335.34297416,0.0001459,2]
[423765323,1780404640000,-151.0,0.0001425,2]
[423765338,1780404640000,-1273.0,0.00014672,2]
[423765349,1780404640000,-10000.0,0.00014843,2]
[423765346,1780404640000,-800.0,0.00014726,2]
[423765336,1780404640000,-929.0,0.00014672,2]
[423765342,1780404640000,-700.0,0.00014688,2]
[423765337,1780404640000,-1357.0,0.00014672,2]
[423765351,1780404640000,-182.74701,0.0001485,2]
[423765335,1780404640000,-350.0,0.0001466,2]
[423765340,1780404640000,-1226.0,0.00014672,2]
[423765334,1780404640000,-500.0,0.00014642,2]
[423765341,1780404640000,-150.0,0.00014672,2]
[423765339,1780404640000,-525.0,0.00014672,2]
[423765355,1780404640000,-736.0,0.00014863,2]
[423765390,1780404641000,-830.484,0.00015,2]
[423765391,1780404641000,-6356.58937311,0.00015,2]
[423765389,1780404641000,-280.63250004,0.00015,2]
[423765387,1780404641000,-618.31401655,0.00015,2]
[423765388,1780404641000,-349.39621601,0.00015,2]
[423765386,1780404641000,-1018.91636732,0.00015,2]
[423765392,1780404641000,-482.91773425,0.00015,2]
[423765385,1780404641000,-272.35190866,0.00015,2]
[423765384,1780404641000,-450.0,0.00015,2]
[423765410,1780404643000,-150.0,0.00013425,2]
[423765411,1780404643000,-150.0,0.00013425,2]
[423765412,1780404643000,-15.09668179,0.00013425,2]
[423765530,1780404645000,-375.59286774,0.00013425,2]
[423765529,1780404645000,-192.93713226,0.00013425,2]
[423765534,1780404646000,-1757.17195173,0.00015,2]
[423765533,1780404646000,-312.85414805,0.00013425,2]
[423765532,1780404646000,-500.0,0.00013425,2]
[423765531,1780404646000,-124.40713226,0.00013425,2]
[423765542,1780404900000,500.0,0.00010376,2]
[423765554,1780405074000,-1000.0,0.00029589,120]
[423765555,1780405074000,-1000.0,0.00029589,120]
[423765543,1780405074000,-500.0,0.00025314,120]
[423765546,1780405074000,-375.19113071,0.00025705,120]
[423765545,1780405074000,-665.36818062,0.00025673,120]
[423765548,1780405074000,-312.67676568,0.00026153,120]
[423765544,1780405074000,-375.19113071,0.00025562,120]
[423765549,1780405074000,-312.67676568,0.00026298,120]
[423765550,1780405074000,-366.23,0.00028767,120]
[423765551,1780405074000,-1001.0,0.00029041,120]
[423765552,1780405074000,-1000.0,0.00029589,120]
[423765553,1780405074000,-1000.0,0.00029589,120]
[423765547,1780405074000,-665.36818062,0.00025816,120]
[423765556,1780405075000,-1000.0,0.00029589,120]
[423765557,1780405075000,-1000.0,0.00029589,120]
[423765558,1780405075000,-1000.0,0.00029589,120]
[423765560,1780405075000,-1000.0,0.00029589,120]
[423765559,1780405075000,-1000.0,0.00029589,120]
[423765563,1780405075000,-1000.0,0.00029589,120]
[423765562,1780405075000,-1000.0,0.00029589,120]
[423765564,1780405075000,-747.18381442,0.00029589,120]
[423765566,1780405075000,-5000000.0,0.000297,120]
[423765567,1780405075000,-975788.5498885,0.000297,120]
[423765561,1780405075000,-1000.0,0.00029589,120]
[423765565,1780405075000,-6890.56414306,0.000297,120]
[423765569,1780405080000,-1975788.5498885,0.000297,120]
[423765568,1780405080000,-4024211.4501115,0.000297,120]
[423765570,1780405092000,-3024211.4501115,0.000297,120]
[423765571,1780405093000,-3975788.5498885,0.000297,120]
[423765573,1780405101000,-5000000.0,0.000297,120]
[423765572,1780405101000,-1024211.4501115,0.000297,120]
[423765574,1780405101000,-975788.5498885,0.000297,120]
[423765575,1780405144000,-4024211.4501115,0.000297,120]
[423765576,1780405144000,-3975788.5498885,0.000297,120]
[423765579,1780405147000,-1975788.5498885,0.000299,120]
[423765578,1780405147000,-5000000.0,0.000299,120]
[423765577,1780405147000,-1024211.4501115,0.000297,120]
[423765581,1780405150000,-4975788.5498885,0.000299,120]
[423765580,1780405150000,-3024211.4501115,0.000299,120]
[423765582,1780405153000,-24211.4501115,0.000299,120]
[423765584,1780405153000,-2975788.5498885,0.000299,120]
[423765583,1780405153000,-5000000.0,0.000299,120]
[423765585,1780405155000,-2024211.4501115,0.000299,120]
[423765586,1780405155000,-162.0,0.0003,120]
[423765589,1780405156000,-150.0,0.0003,120]
[423765588,1780405156000,-150.0,0.0003,120]
[423765587,1780405156000,-1000.0,0.0003,120]
[423765590,1780405156000,-150.0,0.0003,120]
[423765591,1780405156000,-150.0,0.0003,120]
[423765597,1780405156000,-200.01,0.00030137,120]
[423765593,1780405156000,-154.0,0.0003,120]
[423765594,1780405156000,-1378.39,0.00030082,120]
[423765595,1780405156000,-296.2,0.00030082,120]
[423765596,1780405156000,-1032.1,0.000301,120]
[423765592,1780405156000,-160.0,0.0003,120]
[423765598,1780405156000,-200.10117794,0.00030137,120]
[423765601,1780405310000,1000.0,0.00027397,120]
[423765602,1780405321000,3803.21791787,0.0002739,120]
[423765606,1780405357000,320.67,0.00028,120]
[423765607,1780405395000,500.0,0.00026681,120]
[423765608,1780405396000,500.0,0.00028469,120]
[423765609,1780405411000,161.84,0.00010345,2]
[423765610,1780405427000,1804.45,0.00010341,2]
[423765611,1780405522000,1402.42,0.00010319,2]
[423765612,1780405536000,284.52,9.815e-05,2]
[423765613,1780405556000,200.0,0.00022,120]
[423765614,1780405558000,156.0,0.0002,120]
[423765615,1780405567000,345.65,0.00010332,2]
[423765658,1780405601000,2141.6,0.00010232,2]
[423765659,1780405616000,1055.37076551,0.00027397,120]
[423765660,1780405639000,4599.58,0.00010201,2]
[423765663,1780405646000,1000.0,0.00027397,120]
[423765662,1780405646000,1000.0,0.00027397,120]
[423765661,1780405646000,1000.0,0.00027397,120]
[423765666,1780405647000,1000.0,0.00027397,120]
[423765665,1780405647000,1000.0,0.00027397,120]
[423765664,1780405647000,1000.0,0.00027397,120]
[423765670,1780405648000,1000.0,0.00027397,120]
[423765669,1780405648000,1000.0,0.00027397,120]
[423765668,1780405648000,1000.0,0.00027397,120]
[423765667,1780405648000,1000.0,0.00027397,120]
[423765671,1780405649000,1000.0,0.00027397,120]
[423765673,1780405649000,747.18381442,0.00027397,120]
[423765672,1780405649000,1000.0,0.00027397,120]
[423765674,1780405665000,200.0,0.00022,120]
[423765675,1780405693000,275.726812,0.00010434,2]
[423765676,1780405716000,615.747,0.00028767,120]
[423765677,1780405757000,320.0,0.00028767,120]
[423765678,1780405759000,150.0,0.00010172,2]
[423765679,1780405763000,200.0,0.00010224,2]
[423765680,1780405774000,2000.0,0.00010219,2]
[423765681,1780405777000,200.0,0.00022,120]
[423765682,1780405811000,637.25,0.00010206,2]
[423765683,1780405815000,736.33480444,0.000104,2]
[423765686,1780405830000,472.66261607,0.00010016,2]
[423765687,1780405830000,448.30171727,9.789e-05,2]
[423765717,1780405832000,-500.0,0.00010589,2]
[423765720,1780405832000,-500.0,0.00010589,2]
[423765718,1780405832000,-500.0,0.00010589,2]
[423765716,1780405832000,-500.0,0.00010589,2]
[423765724,1780405832000,-500.0,0.00010589,2]
[423765722,1780405832000,-500.0,0.00010589,2]
[423765729,1780405832000,-500.0,0.00010589,2]
[423765727,1780405832000,-500.0,0.00010589,2]
[423765730,1780405832000,-500.0,0.00010589,2]
[423765736,1780405832000,-500.0,0.00010589,2]
[423765734,1780405832000,-500.0,0.00010589,2]
[423765738,1780405832000,-500.0,0.00010589,2]
[423765733,1780405832000,-500.0,0.00010589,2]
[423765719,1780405832000,-500.0,0.00010589,2]
[423765728,1780405832000,-500.0,0.00010589,2]
[423765739,1780405832000,-500.0,0.00010589,2]
[423765735,1780405832000,-500.0,0.00010589,2]
[423765731,1780405832000,-500.0,0.00010589,2]
[423765723,1780405832000,-500.0,0.00010589,2]
[423765732,1780405832000,-500.0,0.00010589,2]
[423765726,1780405832000,-500.0,0.00010589,2]
[423765699,1780405832000,-278.28957408,0.00010487,2]
[423765701,1780405832000,-379.4931453,0.00010513,2]
[423765700,1780405832000,-508.00967908,0.00010494,2]
[423765702,1780405832000,-167.23,0.0001054,2]
[423765705,1780405832000,-1200.0,0.00010588,2]
[423765703,1780405832000,-677.96,0.00010582,2]
[423765704,1780405832000,-711.0,0.00010588,2]
[423765712,1780405832000,-500.0,0.00010589,2]
[423765721,1780405832000,-500.0,0.00010589,2]
[423765707,1780405832000,-500.0,0.00010589,2]
[423765713,1780405832000,-500.0,0.00010589,2]
[423765709,1780405832000,-500.0,0.00010589,2]
[423765708,1780405832000,-500.0,0.00010589,2]
[423765706,1780405832000,-500.0,0.00010588,2]
[423765710,1780405832000,-500.0,0.00010589,2]
[423765715,1780405832000,-500.0,0.00010589,2]
[423765714,1780405832000,-500.0,0.00010589,2]
[423765725,1780405832000,-500.0,0.00010589,2]
[423765711,1780405832000,-500.0,0.00010589,2]
[423765737,1780405832000,-500.0,0.00010589,2]
[423765748,1780405832000,-500.0,0.00010589,2]
[423765751,1780405832000,-500.0,0.00010589,2]
[423765766,1780405832000,-500.0,0.00010589,2]
[423765765,1780405832000,-500.0,0.00010589,2]
[423765772,1780405832000,-500.0,0.00010589,2]
[423765770,1780405832000,-500.0,0.00010589,2]
[423765781,1780405832000,-500.0,0.00010589,2]
[423765776,1780405832000,-500.0,0.00010589,2]
[423765774,1780405832000,-500.0,0.00010589,2]
[423765773,1780405832000,-500.0,0.00010589,2]
[423765769,1780405832000,-500.0,0.00010589,2]
[423765771,1780405832000,-500.0,0.00010589,2]
[423765775,1780405832000,-500.0,0.00010589,2]
[423765778,1780405832000,-500.0,0.00010589,2]
[423765782,1780405832000,-500.0,0.00010589,2]
[423765779,1780405832000,-500.0,0.00010589,2]
[423765780,1780405832000,-500.0,0.00010589,2]
[423765777,1780405832000,-500.0,0.00010589,2]
[423765785,1780405832000,-500.0,0.00010589,2]
[423765784,1780405832000,-500.0,0.00010589,2]
[423765783,1780405832000,-500.0,0.00010589,2]
[423765763,1780405832000,-500.0,0.00010589,2]
[423765741,1780405832000,-500.0,0.00010589,2]
[423765767,1780405832000,-500.0,0.00010589,2]
[423765768,1780405832000,-500.0,0.00010589,2]
[423765752,1780405832000,-500.0,0.00010589,2]
[423765755,1780405832000,-500.0,0.00010589,2]
[423765753,1780405832000,-500.0,0.00010589,2]